bitfinex/quotes_SOLUSD_20260220
["timestamp","ask_amount","ask_price","bid_price","bid_amount"]
[1771609796693,17.16927739,84.404,84.354,0.14216157]
[1771609796861,17.16927739,84.404,84.361,4.21957281]
[1771609797060,17.16927739,84.404,84.353,0.14216157]
[1771609797061,17.16927739,84.404,84.363,4.21957281]
[1771609797268,4.46102743,84.403,84.356,4.21957281]
[1771609797666,4.46102743,84.402,84.356,4.21957281]
[1771609797872,17.16927739,84.404,84.351,0.14216157]
[1771609797873,4.46102743,84.399,84.351,0.14216157]
[1771609798073,4.46102743,84.399,84.351,4.21957281]
[1771609798284,4.46102743,84.379,84.338,4.21957281]
[1771609798581,4.46102743,84.379,84.338,16.07658056]
[1771609798792,4.46102743,84.379,84.339,4.21957281]
[1771609798999,4.46102743,84.379,84.338,11.85700775]
[1771609799000,17.16927739,84.404,84.341,4.21957281]
[1771609799156,17.16927739,84.404,84.351,4.21957281]
[1771609799364,17.16927739,84.404,84.363,4.21957281]
[1771609799587,17.16927739,84.404,84.365,0.14216157]
[1771609799788,17.16927739,84.404,84.371,0.14216157]
[1771609800094,16.1166749,84.404,84.371,4.21957281]
[1771609800462,16.1166749,84.404,84.351,29.63771443]
[1771609800463,4.46102743,84.402,84.361,11.8538187]
[1771609800678,4.46102743,84.402,84.362,4.21957281]
[1771609801260,4.46102743,84.399,84.355,11.85464546]
[1771609801761,4.46102743,84.389,84.348,11.85553657]
[1771609801963,4.46102743,84.387,84.338,0.14216157]
[1771609802161,16.1166749,84.404,84.344,0.14216157]
[1771609802375,16.1166749,84.404,84.357,4.21957281]
[1771609802577,16.1166749,84.404,84.351,0.14216157]
[1771609802578,16.1166749,84.404,84.367,4.21957281]
[1771609802784,16.1166749,84.404,84.342,3.69383402]
[1771609802785,4.46102743,84.429,84.377,3.00490157]
[1771609802984,4.46102743,84.446,84.387,3.00490157]
[1771609803184,4.46102743,84.439,84.363,3.00490157]
[1771609803370,4.46102743,84.439,84.38,0.42648471]
[1771609803567,4.46102743,84.439,84.389,0.14216157]
[1771609803979,4.46102743,84.439,84.389,41.61676133]
[1771609804367,4.46102743,84.437,84.389,11.99204721]
[1771609804677,48.15422066,84.47,84.392,3.00490157]
[1771609804678,4.46102743,84.449,84.392,3.00490157]
[1771609804879,4.46102743,84.485,84.396,3.00490157]
[1771609805096,4.46102743,84.485,84.406,3.69383402]
[1771609805273,4.46102743,84.497,84.425,5.36086188]
[1771609805474,4.46102743,84.497,84.434,0.14216157]
[1771609805690,0.2583577,84.502,84.456,4.36173438]
[1771609805991,11.70384022,84.54,84.502,0.55796081]
[1771609806191,11.70384022,84.54,84.461,0.14216157]
[1771609806375,4.46102743,84.509,84.462,4.09967281]
[1771609806694,4.46102743,84.523,84.462,4.09967281]
[1771609806918,29.56965042,84.547,84.461,0.14216157]
[1771609806919,4.08682838,84.509,84.461,0.14216157]
[1771609807386,4.17182962,84.529,84.461,0.14216157]
[1771609807587,4.17182962,84.509,84.437,3.69383402]
[1771609807787,4.17182962,84.489,84.435,0.14216157]
[1771609807972,4.17182962,84.533,84.434,29.60892531]
[1771609808177,4.17182962,84.529,84.434,29.60892531]
[1771609808386,11.82550287,84.563,84.458,4.36451647]
[1771609808590,11.82550287,84.563,84.453,3.69383402]
[1771609808591,4.17182962,84.562,84.481,4.36451647]
[1771609808811,11.70384022,84.54,84.492,4.36451647]
[1771609808975,15.87566984,84.56,84.492,4.36451647]
[1771609809388,15.87566984,84.56,84.458,5.36086188]
[1771609809389,4.17182962,84.56,84.506,4.36451647]
[1771609809698,4.17182962,84.56,84.512,4.36451647]
[1771609809899,11.70384022,84.54,84.428,1.18444118]
[1771609810088,11.70384022,84.53,84.44,5.36086188]
[1771609810290,11.70384022,84.53,84.448,0.14216157]
[1771609810499,11.70384022,84.52,84.447,3.69383402]
[1771609810678,4.17182962,84.499,84.436,41.45151357]
[1771609810878,4.17182962,84.499,84.437,0.14216157]
[1771609811093,4.17182962,84.499,84.436,41.45151357]
[1771609811299,11.70384022,84.49,84.436,41.45151357]
[1771609811479,4.17182962,84.479,84.397,29.62190599]
[1771609811788,4.17182962,84.509,84.413,0.28432314]
[1771609811983,4.17182962,84.507,84.43,3.26583567]
[1771609812184,4.17182962,84.507,84.437,0.14216157]
[1771609812383,4.17182962,84.489,84.437,2.98151253]
[1771609812685,4.17182962,84.469,84.426,11.84469239]
[1771609813076,4.17182962,84.459,84.417,11.84586663]
[1771609813605,4.17182962,84.439,84.386,2.98151253]
[1771609813819,4.17182962,84.439,84.339,47.42753693]
[1771609813820,4.17182962,84.429,84.375,41.48148147]
[1771609814103,4.17182962,84.409,84.375,11.85185185]
[1771609814411,4.17182962,84.409,84.364,11.85339718]
[1771609814885,4.17182962,84.409,84.364,41.48689013]
[1771609815100,11.84567455,84.419,84.343,47.42516606]
[1771609815101,4.17182962,84.389,84.343,2.98151253]
[1771609815408,4.17182962,84.389,84.333,2.98151253]
[1771609815595,4.17182962,84.389,84.335,6.67534655]
[1771609815906,4.17182962,84.389,84.336,2.98151253]
[1771609816114,4.17182962,84.387,84.337,11.85719197]
[1771609816397,4.17182962,84.369,84.321,29.64860473]
[1771609816900,4.17182962,84.359,84.311,11.86084852]
[1771609817077,41.47509124,84.388,84.295,29.65746923]
[1771609817078,4.17182962,84.349,84.295,29.65746923]
[1771609817280,4.17182962,84.349,84.31,12.06096013]
[1771609817597,11.54206939,84.34,84.31,0.2]
[1771609817903,11.54206939,84.34,84.274,47.46366782]
[1771609817904,4.17182962,84.329,84.266,2.98151253]
[1771609818079,4.17182962,84.319,84.269,29.66662824]
[1771609818485,4.17182962,84.317,84.269,29.66662824]
[1771609818719,4.17182962,84.317,84.267,11.86704166]
[1771609818880,4.17182962,84.317,84.267,41.53464582]
[1771609819689,4.17182962,84.317,84.267,11.86704166]
[1771609820004,4.17182962,84.299,84.265,11.86732332]
[1771609820223,11.86267764,84.298,84.265,11.86732332]
[1771609820407,4.17182962,84.297,84.265,41.53563163]
[1771609820916,4.17182962,84.297,84.265,11.86732332]
[1771609821117,4.17182962,84.289,84.231,3.18151253]
[1771609821319,4.17182962,84.289,84.233,3.18151253]
[1771609821624,4.17182962,84.289,84.243,0.14216157]
[1771609821831,4.17182962,84.301,84.251,0.14216157]
[1771609822007,4.17182962,84.299,84.251,0.14216157]
[1771609822201,4.17182962,84.299,84.251,11.86929531]
[1771609822418,4.17182962,84.289,84.241,3.18151253]
[1771609823020,4.17182962,84.289,84.242,0.14216157]
[1771609823322,4.17182962,84.289,84.242,3.3236741]
[1771609823916,4.17182962,84.31,84.246,3.18151253]
[1771609824115,4.17182962,84.299,84.249,0.14216157]
[1771609824315,4.17182962,84.299,84.249,41.54351979]
[1771609824516,4.17182962,84.289,84.249,41.54351979]
[1771609826414,4.17182962,84.289,84.238,3.18151253]
[1771609826609,4.17182962,84.289,84.241,0.14216157]
[1771609827028,4.17182962,84.302,84.243,3.18151253]
[1771609827333,4.17182962,84.302,84.26,0.14216157]
[1771609827541,4.17182962,84.302,84.256,0.14216157]
[1771609827542,4.17182962,84.302,84.263,0.14216157]
[1771609827914,4.17182962,84.302,84.25,3.18151253]
[1771609828117,4.17182962,84.302,84.251,0.14216157]
[1771609828539,4.17182962,84.3,84.251,41.68469517]
[1771609828745,4.17182962,84.299,84.251,41.68469517]
[1771609828922,4.17182962,84.299,84.251,41.5425336]
[1771609829239,4.17182962,84.293,84.251,41.5425336]
[1771609829435,4.17182962,84.289,84.251,41.5425336]
[1771609830130,4.17182962,84.289,84.251,11.86929531]
[1771609830641,4.17182962,84.279,84.239,3.18151253]
[1771609831316,4.17182962,84.279,84.238,29.67752586]
[1771609831516,4.17182962,84.278,84.238,29.67752586]
[1771609831926,4.17182962,84.278,84.229,3.18151253]
[1771609832120,4.17182962,84.305,84.237,3.18151253]
[1771609832419,4.17182962,84.305,84.236,0.14216157]
[1771609832420,4.17182962,84.299,84.245,3.18151253]
[1771609832627,4.17182962,84.297,84.246,44.72651169]
[1771609832810,4.17182962,84.297,84.247,3.18151253]
[1771609834745,4.17182962,84.289,84.248,41.5440129]
[1771609835646,4.17182962,84.289,84.249,3.18151253]
[1771609836531,4.17182962,84.289,84.248,41.5440129]
[1771609836731,4.17182962,84.287,84.249,3.18151253]
[1771609836933,4.17182962,84.3,84.253,0.14216157]
[1771609837246,4.17182962,84.3,84.255,3.18151253]
[1771609837742,4.42601598,84.299,84.255,3.18151253]
[1771609838044,4.42601598,84.299,84.249,0.14216157]
[1771609839622,4.42601598,84.297,84.249,0.14216157]
[1771609840035,4.42601598,84.297,84.248,29.67429493]
[1771609840240,11.86267764,84.298,84.248,29.67429493]
[1771609840241,11.59885815,84.29,84.248,29.67429493]
[1771609840439,165.7,84.378,84.249,3.3236741]
[1771609840440,4.42601598,84.304,84.249,3.3236741]
[1771609840643,4.42601598,84.313,84.249,3.3236741]
[1771609840822,11.99794778,84.347,84.251,3.3236741]
[1771609840823,4.42601598,84.309,84.251,3.3236741]
[1771609841720,4.42601598,84.309,84.258,0.14216157]
[1771609841920,4.42601598,84.309,84.265,3.18151253]
[1771609842657,4.42601598,84.309,84.269,3.18151253]
[1771609842824,4.42601598,84.309,84.273,0.14216157]
[1771609843023,4.42601598,84.309,84.273,41.67385024]
[1771609845645,4.42601598,84.308,84.273,11.86619676]
[1771609845844,4.42601598,84.308,84.263,29.66890945]
[1771609846056,4.42601598,84.299,84.258,11.86830924]
[1771609846365,11.86114321,84.309,84.214,47.49760997]
[1771609846366,4.42601598,84.289,84.239,3.18151253]
[1771609846830,4.42601598,84.279,84.243,29.6757364]
[1771609847328,4.42601598,84.279,84.231,3.18151253]
[1771609847529,4.42601598,84.279,84.234,0.14216157]
[1771609847827,4.42601598,84.279,84.235,3.18151253]
[1771609848652,4.42601598,84.277,84.235,3.18151253]
[1771609849431,4.42601598,84.277,84.237,3.18151253]
[1771609849625,4.42601598,84.277,84.236,41.54993113]
[1771609849838,4.42601598,84.275,84.236,41.54993113]
[1771609850548,4.42601598,84.275,84.236,44.73144366]
[1771609851047,4.42601598,84.289,84.237,3.3236741]
[1771609851853,4.42601598,84.287,84.239,3.3236741]
[1771609852335,4.42601598,84.296,84.239,3.3236741]
[1771609852534,4.42601598,84.296,84.248,0.14216157]
[1771609852741,4.42601598,84.296,84.255,0.14216157]
[1771609852942,4.42601598,84.279,84.238,11.87112704]
[1771609854133,4.42601598,84.269,84.236,29.67843312]
[1771609854734,4.42601598,84.269,84.236,32.85994565]
[1771609855062,4.42601598,84.278,84.237,3.18151253]
[1771609855349,4.42601598,84.277,84.237,3.18151253]
[1771609855549,4.42601598,84.269,84.236,29.67843312]
[1771609857958,4.42601598,84.267,84.236,29.67843312]
[1771609858437,4.42601598,84.267,84.231,11.87211359]
[1771609858438,4.42601598,84.265,84.231,11.87211359]
[1771609858838,11.86718249,84.266,84.211,11.8749332]
[1771609858839,4.42601598,84.249,84.211,11.8749332]
[1771609859546,4.42601598,84.239,84.211,11.8749332]
[1771609859858,11.59885815,84.25,84.211,41.5622662]
[1771609860064,4.42601598,84.249,84.212,3.18151253]
[1771609860356,4.42601598,84.249,84.213,41.7034407]
[1771609860561,4.42601598,84.271,84.221,0.14216157]
[1771609860740,47.43085785,84.334,84.228,3.18151253]
[1771609861063,11.86718249,84.403,84.251,0.14216157]
[1771609861064,4.42601598,84.309,84.251,0.14216157]
[1771609861258,11.59885815,84.32,84.253,0.28432314]
[1771609861557,4.42601598,84.333,84.279,3.18151253]
[1771609861760,11.85409974,84.359,84.291,3.18151253]
[1771609861761,4.42601598,84.344,84.291,3.18151253]
[1771609861954,4.42601598,84.344,84.305,3.18151253]
[1771609862153,4.42601598,84.344,84.266,1.18671824]
[1771609862154,4.42601598,84.357,84.315,3.18151253]
[1771609862342,4.42601598,84.357,84.317,3.3236741]
[1771609862542,4.42601598,84.381,84.319,3.18151253]
[1771609862750,4.42601598,84.393,84.337,3.18151253]
[1771609862950,4.42601598,84.393,84.345,3.18151253]
[1771609863149,6.17896883,84.402,84.353,3.18151253]
[1771609863350,6.17896883,84.402,84.355,3.18151253]
[1771609863550,4.42601598,84.389,84.342,3.18151253]
[1771609863745,4.42601598,84.388,84.333,0.14216157]
[1771609863962,0.1,84.39,84.338,3.18151253]
[1771609864251,0.1,84.39,84.356,3.18151253]
[1771609864558,0.1,84.39,84.357,11.85438078]
[1771609865057,0.1,84.39,84.357,41.49033274]
[1771609865362,4.52601598,84.39,84.357,41.49033274]
[1771609865959,4.42601598,84.415,84.362,3.18151253]
[1771609866158,4.42601598,84.415,84.368,3.18151253]
[1771609866379,47.35870497,84.462,84.357,88.90785588]
[1771609866380,4.4324672,84.438,84.376,3.3236741]
[1771609866541,4.4324672,84.436,84.386,3.18151253]
[1771609866741,4.4324672,84.436,84.375,41.48148147]
[1771609866742,11.59885815,84.42,84.375,11.85185185]
[1771609866941,4.4324672,84.419,84.377,3.18151253]
[1771609867341,4.4324672,84.419,84.375,41.48148147]
[1771609867750,4.4324672,84.419,84.375,11.85185185]
[1771609869165,4.12779271,84.416,84.365,0.14216157]
[1771609869844,4.12779271,84.416,84.365,3.60799724]
[1771609870045,4.12779271,84.427,84.368,3.60799724]
[1771609870257,11.59885815,84.45,84.368,3.60799724]
[1771609870258,4.12779271,84.449,84.368,3.60799724]
[1771609871156,11.84136699,84.45,84.368,3.60799724]
[1771609871157,4.12779271,84.439,84.373,3.46583567]
[1771609871496,4.12779271,84.439,84.375,3.18151253]
[1771609872383,41.44562333,84.448,84.375,3.18151253]
[1771609872384,4.12779271,84.429,84.375,3.18151253]
[1771609872678,4.12779271,84.419,84.369,41.48443148]
[1771609872880,4.12779271,84.419,84.369,11.85269471]
[1771609873076,4.12779271,84.409,84.369,11.85269471]
[1771609873281,11.59885815,84.41,84.357,29.63576492]
[1771609873282,4.12779271,84.407,84.357,29.63576492]
[1771609874478,4.12779271,84.407,84.358,3.3236741]
[1771609874686,4.12779271,84.407,84.363,0.28432314]
[1771609874869,4.12779271,84.418,84.375,0.14216157]
[1771609875067,4.12779271,84.418,84.363,3.18151253]
[1771609875269,4.12779271,84.409,84.364,22.15339718]
[1771609875487,4.12779271,84.409,84.365,10.3]
[1771609876073,151.75447958,84.47,84.364,11.85339718]
[1771609876074,11.56840816,84.45,84.374,0.28432314]
[1771609876284,41.16821872,84.46,84.392,0.14216157]
[1771609876466,41.16821872,84.46,84.395,4.47113559]
[1771609876467,11.56840816,84.45,84.395,4.47113559]
[1771609876665,29.59981056,84.46,84.395,4.47113559]
[1771609876877,11.56840816,84.45,84.395,4.47113559]
[1771609877277,41.44513255,84.449,84.396,11.84890279]
[1771609877582,11.56840816,84.44,84.396,11.84890279]
[1771609877768,11.56840816,84.43,84.368,16.32397078]
[1771609877967,11.56840816,84.43,84.369,4.61329716]
[1771609878163,4.12779271,84.409,84.359,4.47113559]
[1771609878376,4.12779271,84.409,84.363,4.47113559]
[1771609878579,4.12779271,84.409,84.36,0.14216157]
[1771609878580,4.12779271,84.409,84.365,4.47113559]
[1771609878776,4.12779271,84.409,84.367,4.47113559]
[1771609878992,4.12779271,84.42,84.375,4.47113559]
[1771609879201,4.12779271,84.419,84.375,4.47113559]
[1771609879368,4.12779271,84.417,84.376,11.85171138]
[1771609879568,11.84581487,84.418,84.376,11.85171138]
[1771609879569,4.12779271,84.409,84.376,11.85171138]
[1771609879889,4.12779271,84.409,84.365,22.15325668]
[1771609880294,4.12779271,84.399,84.365,10.3]
[1771609880474,4.12779271,84.399,84.355,11.85466184]
[1771609880786,4.12779271,84.412,84.36,4.47113559]
[1771609880977,4.12779271,84.412,84.366,4.47113559]
[1771609881177,11.56840816,84.41,84.366,4.47113559]
[1771609881391,4.12779271,84.409,84.366,4.47113559]
[1771609881591,4.12779271,84.407,84.367,11.85297568]
[1771609881793,4.12779271,84.407,84.367,41.4854149]
[1771609882598,4.12779271,84.407,84.367,45.95655049]
[1771609882806,4.12779271,84.407,84.368,4.47113559]
[1771609883099,15.97375124,84.417,84.368,4.47113559]
[1771609883403,4.12779271,84.399,84.353,11.85494291]
[1771609883594,4.12779271,84.397,84.354,4.47113559]
[1771609883798,4.12779271,84.437,84.368,4.75545873]
[1771609884094,4.12779271,84.448,84.384,4.47113559]
[1771609884292,4.12779271,84.448,84.369,3.69383402]
[1771609884293,4.12779271,84.448,84.393,4.47113559]
[1771609884590,4.12779271,84.448,84.405,4.47113559]
[1771609884800,4.12779271,84.448,84.411,4.47113559]
[1771609884977,4.12779271,84.448,84.391,0.14216157]
[1771609885293,4.12779271,84.448,84.385,0.28432314]
[1771609885294,4.12779271,84.448,84.396,4.47113559]
[1771609885589,4.12779271,84.448,84.355,10.77276296]
[1771609885590,4.12779271,84.429,84.377,4.47113559]
[1771609885774,4.12779271,84.429,84.381,0.14216157]
[1771609885975,4.12779271,84.429,84.381,4.61329716]
[1771609886191,4.12779271,84.409,84.366,11.85311618]
[1771609886395,136.1946043,84.438,84.332,47.43123009]
[1771609886396,4.12779271,84.379,84.334,11.85761377]
[1771609886782,4.12779271,84.379,84.335,4.47113559]
[1771609887800,4.12779271,84.392,84.339,4.47113559]
[1771609888009,4.12779271,84.419,84.344,0.42648471]
[1771609888177,4.12779271,84.419,84.359,4.47113559]
[1771609888378,4.12779271,84.419,84.37,0.14216157]
[1771609888584,4.12779271,84.419,84.364,4.47113559]
[1771609888783,4.12779271,84.419,84.366,4.47113559]
[1771609889695,4.12779271,84.432,84.372,4.61329716]
[1771609889903,11.84399095,84.431,84.372,4.61329716]
[1771609890198,4.12779271,84.429,84.372,4.61329716]
[1771609890404,4.12779271,84.419,84.372,4.47113559]
[1771609890789,4.12779271,84.409,84.358,4.47113559]
[1771609891697,4.12779271,84.407,84.36,4.47113559]
[1771609892897,4.12779271,84.389,84.359,11.85409974]
[1771609893100,4.12779271,84.389,84.349,11.8555051]
[1771609893489,4.12779271,84.389,84.349,41.49426785]
[1771609893802,4.12779271,84.389,84.346,4.47113559]
[1771609893803,4.12779271,84.398,84.356,4.47113559]
[1771609895201,4.12779271,84.398,84.345,4.47113559]
[1771609895401,11.84794607,84.403,84.351,4.47113559]
[1771609895616,11.84794607,84.403,84.355,4.47113559]
[1771609895782,4.12779271,84.407,84.359,4.47113559]
[1771609896098,11.845333,84.422,84.373,4.47113559]
[1771609896300,11.84472457,84.426,84.375,4.47113559]
[1771609896504,47.36256015,84.455,84.356,195.59960166]
[1771609896505,4.12779271,84.448,84.385,4.47113559]
[1771609897004,4.12779271,84.448,84.395,4.47113559]
[1771609897307,4.47518288,84.462,84.401,4.3855618]
[1771609897508,4.47518288,84.459,84.405,4.3855618]
[1771609897691,4.47518288,84.449,84.396,4.3855618]
[1771609897887,4.47518288,84.447,84.398,4.3855618]
[1771609898414,4.47518288,84.429,84.375,4.3855618]
[1771609898583,4.47518288,84.429,84.376,29.62918665]
[1771609898784,4.47518288,84.429,84.382,0.14216157]
[1771609898980,11.56840816,84.45,84.391,4.3855618]
[1771609898981,11.84146644,84.449,84.391,4.3855618]
[1771609899203,11.84146644,84.449,84.395,4.3855618]
[1771609899397,4.47518288,84.467,84.405,4.3855618]
[1771609899600,4.47518288,84.467,84.411,4.3855618]
[1771609899887,4.47518288,84.467,84.415,4.3855618]
[1771609900093,4.47518288,84.467,84.417,4.3855618]
[1771609900094,4.47518288,84.466,84.417,4.3855618]
[1771609903393,4.47518288,84.464,84.418,11.84581487]
[1771609903598,4.47518288,84.459,84.418,11.84581487]
[1771609903792,4.47518288,84.459,84.385,4.3855618]
[1771609904115,4.47518288,84.439,84.387,4.3855618]
[1771609904407,4.47518288,84.437,84.389,4.3855618]
[1771609904817,4.47518288,84.437,84.388,41.47509124]
[1771609904818,4.47518288,84.46,84.396,0.28432314]
[1771609905109,4.47518288,84.46,84.388,148.12532587]
[1771609905110,4.47518288,84.46,84.405,4.3855618]
[1771609905612,4.47518288,84.46,84.396,0.14216157]
[1771609905613,11.83446381,84.499,84.418,0.28432314]
[1771609905917,11.83446381,84.499,84.406,1.18474989]
[1771609905918,29.57973912,84.518,84.446,0.42648471]
[1771609906098,29.57973912,84.518,84.455,4.3855618]
[1771609906434,29.57973912,84.518,84.456,41.44169744]
[1771609906721,29.57973912,84.518,84.457,4.3855618]
[1771609906890,11.83165915,84.519,84.459,4.3855618]
[1771609907089,41.41080703,84.519,84.465,4.3855618]
[1771609907295,11.56840816,84.51,84.457,4.3855618]
[1771609907613,11.56840816,84.51,84.456,11.84048498]
[1771609907614,4.47518288,84.479,84.425,4.3855618]
[1771609908214,4.47518288,84.479,84.417,29.61488799]
[1771609908215,11.66840816,84.5,84.431,4.3855618]
[1771609908397,4.47518288,84.499,84.435,4.3855618]
[1771609908592,4.47518288,84.497,84.437,4.3855618]
[1771609908797,4.47518288,84.479,84.431,11.84388597]
[1771609909017,4.47518288,84.469,84.421,11.84539391]
[1771609909193,4.47518288,84.469,84.421,41.4588787]
[1771609909391,41.42109871,84.498,84.424,4.3855618]
[1771609909709,41.42109871,84.498,84.423,0.14216157]
[1771609909710,4.47518288,84.489,84.429,0.14216157]
[1771609909894,4.47518288,84.489,84.436,4.3855618]
[1771609910096,4.47518288,84.479,84.436,4.3855618]
[1771609910502,11.56840816,84.48,84.422,4.3855618]
[1771609910503,4.47518288,84.477,84.422,4.3855618]
[1771609910701,4.47518288,84.469,84.422,4.3855618]
[1771609910907,4.47518288,84.459,84.404,4.3855618]
[1771609911297,4.47518288,84.459,84.413,0.14216157]
[1771609911502,4.47518288,84.459,84.416,4.3855618]
[1771609912323,4.47518288,84.477,84.416,4.3855618]
[1771609912901,4.47518288,84.468,84.418,4.3855618]
[1771609913623,4.47518288,84.468,84.417,41.46084318]
[1771609913624,11.83726133,84.479,84.426,4.3855618]
[1771609913821,4.47518288,84.459,84.417,45.84640498]
[1771609914010,4.47518288,84.47,84.42,4.3855618]
[1771609914215,4.47518288,84.47,84.425,0.14216157]
[1771609914410,4.47518288,84.47,84.426,4.3855618]
[1771609914602,4.47518288,84.469,84.426,4.3855618]
[1771609915122,11.83880286,84.468,84.428,4.3855618]
[1771609915421,4.47518288,84.467,84.428,4.3855618]
[1771609916125,4.47518288,84.467,84.418,11.84581487]
[1771609916428,4.47518288,84.467,84.419,4.3855618]
[1771609917425,4.47518288,84.465,84.42,11.84553423]
[1771609917727,4.47518288,84.465,84.421,4.3855618]
[1771609917910,4.47518288,84.459,84.411,4.3855618]
[1771609919421,4.47518288,84.449,84.411,4.3855618]
[1771609919625,11.84160666,84.448,84.411,4.3855618]
[1771609919825,45.92080621,84.448,84.412,11.84665687]
[1771609920021,4.47518288,84.458,84.413,4.3855618]
[1771609920326,4.47518288,84.458,84.415,4.3855618]
[1771609920618,4.47518288,84.469,84.417,4.3855618]
[1771609920806,4.47518288,84.469,84.417,4.52772337]
[1771609921731,4.47518288,84.469,84.376,47.40661121]
[1771609921732,11.56840816,84.46,84.419,4.3855618]
[1771609922109,11.56840816,84.46,84.418,11.84581487]
[1771609922627,4.47518288,84.449,84.418,11.84581487]
[1771609923608,16.31678954,84.448,84.41,11.84693756]
[1771609924108,4.47518288,84.447,84.41,11.84693756]
[1771609924609,4.47518288,84.447,84.41,45.84984327]
[1771609925016,4.47518288,84.447,84.411,4.3855618]
[1771609925628,4.47518288,84.445,84.403,4.3855618]
[1771609925848,4.47518288,84.439,84.383,4.3855618]
[1771609926032,11.84188712,84.446,84.385,4.3855618]
[1771609926033,4.47518288,84.429,84.385,4.3855618]
[1771609926229,4.23659532,84.419,84.377,11.85144176]
[1771609926841,4.23659532,84.419,84.378,4.35857828]
[1771609927422,4.08908693,84.429,84.378,4.35857828]
[1771609927623,15.93349873,84.428,84.38,4.16598339]
[1771609927823,4.08908693,84.427,84.38,4.16598339]
[1771609929231,4.08908693,84.419,84.38,4.16598339]
[1771609929536,4.08908693,84.419,84.368,4.16598339]
[1771609929742,11.84581487,84.418,84.37,4.16598339]
[1771609930445,11.84474983,84.426,84.372,4.16598339]
[1771609930941,11.84474983,84.426,84.369,41.48443148]
[1771609930942,4.08908693,84.425,84.376,4.16598339]
[1771609931237,11.84474983,84.426,84.378,4.16598339]
[1771609931435,4.08908693,84.449,84.382,4.16598339]
[1771609931634,4.08908693,84.459,84.392,4.16598339]
[1771609931839,4.08908693,84.459,84.403,4.16598339]
[1771609932032,41.16132748,84.48,84.396,3.69383402]
[1771609932033,11.83726133,84.479,84.411,4.16598339]
[1771609932240,4.08908693,84.478,84.415,4.16598339]
[1771609933034,4.08908693,84.469,84.415,4.16598339]
[1771609933820,47.33955668,84.496,84.417,4.16598339]
[1771609933821,4.08908693,84.467,84.417,4.16598339]
[1771609936628,4.08908693,84.465,84.419,4.16598339]
[1771609939539,11.83936351,84.464,84.421,4.16598339]
[1771609939742,4.08908693,84.463,84.421,4.16598339]
[1771609940745,15.92732918,84.472,84.421,4.16598339]
[1771609940949,4.08908693,84.471,84.421,4.16598339]
[1771609941167,4.08908693,84.469,84.421,4.16598339]
[1771609941533,11.83880286,84.468,84.423,4.16598339]
[1771609942861,11.55301269,84.48,84.422,41.45838761]
[1771609942862,4.08908693,84.467,84.425,4.16598339]
[1771609943033,4.08908693,84.478,84.425,4.16598339]
[1771609943430,11.83614047,84.487,84.431,4.16598339]
[1771609943632,4.08908693,84.506,84.443,4.16598339]
[1771609943834,4.08908693,84.517,84.451,4.16598339]
[1771609944148,4.08908693,84.517,84.455,4.16598339]
[1771609944346,11.93432152,84.5,84.455,4.16598339]
[1771609945852,11.93432152,84.5,84.435,3.69383402]
[1771609945853,4.08908693,84.499,84.456,11.84048498]
[1771609946437,4.08908693,84.499,84.457,4.16598339]
[1771609948169,0.1,84.5,84.461,4.16598339]
[1771609948336,0.1,84.5,84.465,4.16598339]
[1771609948543,4.08908693,84.52,84.476,4.16598339]
[1771609949160,15.9206491,84.52,84.476,4.16598339]
[1771609949461,4.08908693,84.519,84.476,4.16598339]
[1771609949827,4.08908693,84.519,84.466,4.16598339]
[1771609950029,4.08908693,84.507,84.465,4.16598339]
[1771609950241,4.08908693,84.519,84.465,4.16598339]
[1771609950650,4.08908693,84.519,84.467,4.16598339]
[1771609950953,4.08908693,84.519,84.474,0.14216157]
[1771609951140,4.08908693,84.519,84.475,4.16598339]
[1771609952146,4.08908693,84.517,84.476,11.8376817]
[1771609952950,4.08908693,84.517,84.467,4.16598339]
[1771609953337,11.83149877,84.521,84.471,4.16598339]
[1771609953533,11.83149877,84.521,84.468,0.14216157]
[1771609953534,11.83085127,84.525,84.475,4.16598339]
[1771609953738,15.9199382,84.525,84.475,4.16598339]
[1771609954263,15.9199382,84.525,84.477,4.16598339]
[1771609955673,4.08908693,84.519,84.476,11.8376817]
[1771609955854,4.08908693,84.509,84.471,11.83831273]
[1771609956057,4.08908693,84.509,84.458,11.84020459]
[1771609956362,4.08908693,84.509,84.412,47.38620597]
[1771609956363,4.08908693,84.489,84.442,4.16598339]
[1771609956878,4.08908693,84.479,84.421,4.16598339]
[1771609957179,4.08908693,84.479,84.425,4.09315476]
[1771609957651,4.05159576,84.489,84.427,4.09315476]
[1771609958953,4.05159576,84.489,84.43,0.28432314]
[1771609959157,4.05159576,84.5,84.445,4.09315476]
[1771609959448,11.83277916,84.511,84.461,4.09315476]
[1771609959653,11.83217543,84.516,84.465,4.09315476]
[1771609960058,11.83137918,84.521,84.474,0.14216157]
[1771609960250,4.05159576,84.522,84.475,4.09315476]
[1771609960780,15.88295695,84.522,84.475,4.09315476]
[1771609960966,15.88295695,84.522,84.477,4.09315476]
[1771609961278,4.05159576,84.521,84.477,4.09315476]
[1771609963660,4.05159576,84.531,84.481,4.09315476]
[1771609963859,4.05159576,84.531,84.485,4.09315476]
[1771609964987,11.82896073,84.539,84.485,4.09315476]
[1771609965178,4.05159576,84.538,84.485,4.09315476]
[1771609965769,4.05159576,84.536,84.487,4.09315476]